[Event "Portuguese-ch U14-20 2022"]
[Site "Fatima"]
[Date "2022.04.12"]
[Round "4.8"]
[White "Oliveira, Daniela Sousa"]
[Black "Rodrigues, Guilherme Eufrasio"]
[Result "1/2-1/2"]
[ECO "A11"]
[WhiteElo "1272"]
[BlackElo "1171"]
[Annotator "NA RC"]
[PlyCount "147"]
[EventDate "2022.04.10"]
[EventType "swiss"]
[EventCountry "POR"]
[SourceTitle "playchess.com"]
[Source "ChessBase"]
[SourceQuality "1"]
[TimeControl "5400+30"]

1. c4 {[%emt 1:31:00]} c6 {[%emt 0:00:21]} 2. Nc3 {[%emt 0:00:00]} Nf6 {[%emt 0:00:14]} 3. g3 {[%emt 0:00:00]} g6 {[%emt 0:00:05]} 4. Bg2 {[%emt 0:00:00]} Bg7 {[%emt 0:00:04]} 5. d3 {[%emt 0:00:00]} O-O {[%emt 0:00:06]} 6. e4 {[%emt 0:00:00]} d6 {[%emt 0:00:31]} 7. Nge2 {[%emt 0:00:00]} Nbd7 {[%emt 0:00:27]} 8. O-O {[%emt 0:00:00]} Ne5 {[%emt 0:01:34]} 9. b4 {[%emt 0:00:00]} a6 {[%emt 0:00:58]} 10. Rb1 {[%emt 0:00:00]} Bd7 {[%emt 0:00:04]} 11. h3 {[%emt 0:00:00]} Qc8 {[%emt 0:00:08]} 12. Nf4 {[%emt 0:00:00]} Rb8 {[%emt 0:03:57]} 13. b5 {[%emt 0:00:00]} cxb5 {[%emt 0:00:05]} 14. cxb5 {[%emt 0:00:00]} axb5 {[%emt 0:00:11]} 15. Nxb5 {[%emt 0:00:00]} Bxb5 {[%emt 0:07:21]} 16. Rxb5 {[%emt 0:00:00]} Qd7 {[%emt 0:03:38]} 17. Rb1 {[%emt 0:00:00]} Nc6 {[%emt 0:05:01]} 18. Be3 {[%emt 0:00:00]} e5 19. Ne2 {[%emt 0:00:00]} Qe6 {[%emt 0:04:10]} 20. Qb3 {[%emt 0:00:00]} Qxb3 {[%emt 0:00:20]} 21. Rxb3 {[%emt 0:00:00]} Nd7 {[%emt 0:00:10]} 22. Rfb1 {[%emt 0:00:00]} Nc5 {[%emt 0:06:50]} 23. Bxc5 {[%emt 0:00:00]} dxc5 {[%emt 0:00:06]} 24. Rxb7 {[%emt 0:00:00]} Rxb7 {[%emt 0:00:03]} 25. Rxb7 {[%emt 0:00:00]} Rc8 {[%emt 0:00:34]} 26. h4 {[%emt 0:00:00]} Nb4 {[%emt 0:01:12]} 27. Nc1 {[%emt 0:00:00]} Rd8 {[%emt 0:00:10]} 28. Rc7 {[%emt 0:00:00]} Bf8 {[%emt 0:00:12]} 29. Bf1 {[%emt 0:00:00]} Ra8 {[%emt 0:00:03]} 30. Nb3 {[%emt 0:00:00]} Rxa2 {[%emt 0:00:30]} 31. Nxc5 {[%emt 0:00:00]} Rc2 {[%emt 0:00:03]} 32. Rc8 {[%emt 0:00:00]} Kg7 {[%emt 0:01:19]} 33. Rxf8 {[%emt 0:00:00]} Kxf8 {[%emt 0:00:08]} 34. Nd7+ {[%emt 0:00:00]} Ke7 {[%emt 0:02:44]} 35. Nxe5 {[%emt 0:00:00]} f6 {[%emt 0:01:24]} 36. Nf3 {[%emt 0:00:00]} Rc1 {[%emt 0:00:07]} 37. Kg2 {[%emt 0:00:00]} Kd6 {[%emt 0:05:42]} 38. g4 {[%emt 0:00:00]} Ra1 {[%emt 0:01:14]} 39. g5 {[%emt 0:00:00]} fxg5 {[%emt 0:00:06]} 40. Nxg5 {[%emt 0:00:00]} Ra3 {[%emt 0:00:33]} 41. d4 {[%emt 0:00:00]} Nc6 {[%emt 0:00:32]} 42. d5 {[%emt 0:00:00]} Ne5 {[%emt 0:00:21]} 43. Nxh7 {[%emt 0:00:06]} Ra2 {[%emt 0:01:16]} 44. Kg3 {[%emt 0:02:17]} Ra3+ {[%emt 0:00:07]} 45. Kg2 {[%emt 0:02:18]} Ng4 {[%emt 0:00:05]} 46. Be2 {[%emt 0:02:03]} Ne5 {[%emt 0:00:11]} 47. f4 {[%emt 0:01:27]} Nd3 {[%emt 0:01:06]} 48. Bxd3 {[%emt 0:01:28]} Rxd3 {[%emt 0:00:05]} 49. Nf8 {[%emt 0:00:16]} Re3 {[%emt 0:00:23]} 50. e5+ {[%emt 0:00:42]} Kxd5 {[%emt 0:00:22]} 51. Nxg6 {[%emt 0:00:13]} Ke4 {[%emt 0:00:29]} 52. h5 {[%emt 0:02:36]} Kf5 {[%emt 0:00:07]} 53. Kf2 {[%emt 0:02:49]} Rh3 {[%emt 0:00:53]} 54. Kg2 {[%emt 0:02:36]} Rxh5 {[%emt 0:01:01]} 55. Nf8 {[%emt 0:01:38]} Kxf4 56. Nd7 {[%emt 0:00:33]} Rh7 {[%emt 0:02:08]} 57. e6 {[%emt 0:00:22]} Re7 {[%emt 0:00:20]} 58. Nc5 {[%emt 0:01:13]} Ke5 {[%emt 0:00:09]} 59. Nd3+ {[%emt 0:02:03]} Kxe6 {[%emt 0:00:14]} 60. Nf4+ {[%emt 0:00:25]} Kf5 {[%emt 0:00:47]} 61. Nd3 {[%emt 0:02:21]} Re2+ {[%emt 0:01:12]} 62. Kf3 {[%emt 0:00:24]} Rd2 {[%emt 0:00:11]} 63. Nf2 {[%emt 0:00:38]} Ra2 {[%emt 0:00:14]} 64. Ke3 {[%emt 0:01:09]} Ke5 {[%emt 0:00:24]} 65. Nd3+ {[%emt 0:00:22]} Kf5 {[%emt 0:00:28]} 66. Kd4 {[%emt 0:00:53]} Rd2 {[%emt 0:00:09]} 67. Ke3 {[%emt 0:00:28]} Rh2 {[%emt 0:00:31]} 68. Kd4 {[%emt 0:00:16]} Rh4+ {[%emt 0:00:14]} 69. Kc3 {[%emt 0:00:11]} Ke4 {[%emt 0:00:12]} 70. Nf2+ {[%emt 0:00:20]} Ke3 {[%emt 0:00:33]} 71. Nd1+ {[%emt 0:00:49]} Ke2 {[%emt 0:00:14]} 72. Nb2 {[%emt 0:00:15]} Rh3+ {[%emt 0:00:13]} 73. Kd4 {[%emt 0:00:20]} Rd3+ {[%emt 0:00:09]} 74. Nxd3 1/2-1/2

[Event "Portuguese-ch U14-20 2022"]
[Site "Fatima"]
[Date "2022.04.12"]
[Round "4.10"]
[White "Pipiras, Filipa Fortuna"]
[Black "Sismeiro, Miguel"]
[Result "1/2-1/2"]
[ECO "D78"]
[WhiteElo "2000"]
[BlackElo "2201"]
[Annotator "TA"]
[PlyCount "64"]
[EventDate "2022.04.10"]
[EventType "swiss"]
[EventCountry "POR"]
[SourceTitle "playchess.com"]
[Source "ChessBase"]
[SourceQuality "1"]
[TimeControl "5400+30"]

{[%evp 13,64,-12,13,8,40,60,35,0,13,4,18,-11,0,9,11,7,0,1,0,5,37,33,30,37,23,23,26,25,27,35,34,0,0,-27,0,0,30,-2,71,79,324,316,267,0,0,-26,0,-32,-31,-34,-33,-31,-41]} 1. d4 {[%emt 0:09:41]} Nf6 {[%emt 0:00:06]} 2. Nf3 {[%emt 0:00:26]} g6 {[%emt 0:09:41]} 3. g3 {[%emt 0:00:40]} Bg7 {[%emt 0:00:05]} 4. Bg2 {[%emt 0:00:12]} d5 {[%emt 0:00:04]} 5. O-O {[%emt 0:02:45]} O-O {[%emt 0:00:04]} 6. c4 {[%emt 0:00:18]} c6 {[%emt 0:00:03]} 7. a4 {[%emt 0:04:33]} dxc4 {[%emt 0:12:26][%cal Oc6c5]} 8. Na3 {[%emt 0:06:54] D73: Fianchetto Grünfeld: 5 Nf3 .} Nbd7 {[%emt 0:23:19]} 9. Nxc4 {[%emt 0:21:31]} Nb6 {[%emt 0:00:41] [#]} 10. Nxb6 $146 {[%emt 0:01:11] White is slightly better.} ({Predecessor:} 10. b3 Be6 11. Qc2 Bf5 12. Qa2 Be4 13. Rd1 Nbd5 14. Bd2 a5 15. Rac1 Nb4 16. Qb2 {½-½ (43) Svane,R (2613)-Nakamura,H (2736) Chess.com INT 2021}) 10... axb6 {[%emt 0:00:47]} 11. b3 {[%emt 0:03:56]} Bf5 {[%emt 0:03:09]} 12. Nh4 {[%emt 0:10:03]} Bg4 {[%emt 0:04:19]} 13. h3 {[%emt 0:03:47]} Be6 {[%emt 0:00:04]} 14. e4 {[%emt 0:03:39]} b5 {[%emt 0:02:42]} 15. Be3 {[%emt 0:02:57]} bxa4 {[%emt 0:05:16]} 16. bxa4 {[%emt 0:00:39]} Bc4 {[%emt 0:01:04]} 17. Re1 {[%emt 0:00:16]} b5 {[%emt 0:07:52]} 18. Qc2 {[%emt 0:03:20]} Nd7 {[%emt 0:04:53]} 19. axb5 {[%emt 0:06:47]} cxb5 {[%emt 0:01:02]} 20. Nf3 {[%emt 0:00:55]} Nb6 {[%emt 0:01:25]} 21. Rxa8 {[%emt 0:01:18]} (21. Qd2 {is interesting.} f5 22. exf5 Bd5 23. Qb4) 21... Qxa8 {[%emt 0:00:26]} 22. Nd2 {[%emt 0:00:16]} (22. d5 $5 {[%cal Re3b6]} Nd7 23. Nd2 $14) 22... Rc8 {[%emt 0:01:09]} 23. Qb1 {[%emt 0:03:52]} Qa5 {[%emt 0:05:12] Inhibits Qb4.} (23... Qa3 $5 {[%cal Rc4d3]}) 24. Rc1 {[%emt 0:01:32]} h6 {[%emt 0:12:03]} 25. d5 {[%emt 0:05:04]} Na4 {[%emt 0:00:09]} (25... Kh7 $1 $11 {remains equal.} 26. Bxb6 (26. Nxc4 Nxc4 27. Bf1 Bc3 $11) 26... Qxd2) 26. Nxc4 $16 {[%emt 0:00:24]} Rxc4 {[%emt 0:00:24]} (26... bxc4 $16 27. Qb7 Qd8) 27. Rxc4 $18 {[%emt 0:00:58]} bxc4 {[%emt 0:00:02] [#]} 28. Qc2 {[%emt 0:00:15]} (28. Qb8+ $1 $18 Kh7 29. Qe8) 28... Qb4 {[%emt 0:01:02]} 29. Bf1 {[%emt 0:00:24]} (29. e5 $5) 29... Nc3 {[%emt 0:00:24]} 30. Bd2 {[%emt 0:00:49]} Qb3 {[%emt 0:00:58] Black is slightly better.} 31. Qxb3 {[%emt 0:00:19]} cxb3 {[%emt 0:00:04]} 32. Bxc3 {[%emt 0:00:11]} Bxc3 {[%emt 0:00:04] Weighted Error Value: White=0.20 (precise) /Black=0.36} 1/2-1/2

[Event "Portuguese-ch U14-20 2022"]
[Site "Fatima"]
[Date "2022.04.12"]
[Round "4.11"]
[White "Ribeiro, Rodrigo"]
[Black "Vidal Torres, Ricardo"]
[Result "0-1"]
[ECO "D37"]
[WhiteElo "1866"]
[BlackElo "2332"]
[Annotator "TA"]
[PlyCount "122"]
[EventDate "2022.04.10"]
[EventType "swiss"]
[EventCountry "POR"]
[SourceTitle "playchess.com"]
[Source "ChessBase"]
[SourceQuality "1"]
[TimeControl "5400+30"]

{[%evp 9,122,24,23,19,20,22,21,24,22,12,20,20,37,0,12,0,9,0,0,-34,-28,-37,-32,-45,-20,-83,-95,-102,-81,-103,-103,-112,-88,-101,-104,-111,-91,-182,-123,-177,-150,-129,-126,-116,-75,-104,-54,-91,-61,-446,-441,-811,-844,-834,-752,-1116,-1101,-974,-466,-456,-291,-265,-264,-275,-277,-273,-246,-389,-290,-412,-319,-303,-285,-277,-258,-432,-253,-260,-194,-488,-331,-237,-23,-409,-406,-402,-407,-374,-316,-246,0,0,0,0,0,-96,8,8,8,0,0,0,0,0,0,0,0,0,0,0,0,0,0,0,0]} 1. d4 {[%emt 0:00:01]} Nf6 {[%emt 0:00:05]} 2. c4 {[%emt 0:00:07]} e6 {[%emt 0:00:02]} 3. Nf3 {[%emt 0:00:28]} d5 {[%emt 0:00:05]} 4. Nc3 {[%emt 0:00:08]} a6 {[%emt 0:00:09]} 5. cxd5 {[%emt 0:00:47]} exd5 {[%emt 0:00:06]} 6. Bg5 {[%emt 0:00:15] D37: Queen's Gambit Declined: 5 Bf4.} Be7 {[%emt 0:00:41]} 7. Qb3 {[%emt 0:01:36]} c6 {[%emt 0:00:55]} 8. e3 {[%emt 0:02:17]} O-O $1 {[%emt 0:01:58] The main line 8...0-0 scores better than 8...Nbd7.} 9. Bd3 {[%emt 0:00:55]} Nbd7 {[%emt 0:01:56][%cal Bb8d7,Bd7f6,Bf6e4][%mdl 32]} 10. h3 {[%emt 0:09:42]} Ne4 {[%emt 0:07:02]} 11. Bf4 {[%emt 0:01:39]} Ndf6 {[%emt 0:07:03] [#]} 12. Qc2 $146 {[%emt 0:01:59]} ({Predecessor:} 12. O-O Bd6 13. Bxd6 Nxd6 14. Na4 Qe7 15. Qc2 {½-½ (15) Dorfman,J (2585)-Prie,E (2465) Meribel 1998}) 12... Re8 {[%emt 0:08:04]} 13. Be5 {[%emt 0:06:04]} (13. Nxe4 $2 dxe4 14. Bc4 exf3 $19) 13... Bd6 {[%emt 0:06:11]} 14. g4 {[%emt 0:10:10]} ({Don't go for} 14. Nxe4 $2 dxe4 15. Bxe4 Nxe4 16. Qxe4 Qa5+ 17. Nd2 f6 $19) 14... Nxc3 {[%emt 0:08:37]} 15. bxc3 {[%emt 0:00:36]} Ne4 {[%emt 0:02:14]} 16. Rb1 {[%emt 0:25:33]} Ra7 {[%emt 0:12:06]} 17. Bxe4 {[%emt 0:08:00]} (17. Bxd6 $11 Qxd6 18. c4) 17... dxe4 $17 {[%emt 0:00:10]} 18. Bxd6 {[%emt 0:00:05]} ({Not} 18. Qxe4 $2 f6 19. O-O Qe7 $19) 18... Qxd6 {[%emt 0:00:17]} 19. Nd2 {[%emt 0:00:50]} b5 {[%emt 0:03:36]} 20. Ke2 {[%emt 0:03:31]} f5 {[%emt 0:05:04]} 21. Rbg1 {[%emt 0:02:31]} c5 {[%emt 0:03:53]} 22. gxf5 {[%emt 0:10:49]} Bxf5 {[%emt 0:00:33]} 23. Rg5 {[%emt 0:00:23]} (23. Nb3 $17) 23... Rf7 {[%emt 0:02:00]} (23... Qf6 $19 24. Rhg1 cxd4 25. cxd4 Rc8 26. Qb3+ Kh8) 24. Rhg1 {[%emt 0:07:58]} (24. Nb3 $17 {was worth a try.}) 24... h6 {[%emt 0:02:54]} 25. R5g3 {[%emt 0:06:01]} c4 {[%emt 0:00:49] Against Nb3} 26. Qb2 {[%emt 0:00:20]} Qf8 {[%emt 0:01:56] &Nero is much more active.} 27. Qb4 {[%emt 0:00:38]} Ree7 {[%emt 0:02:15]} (27... Qxb4 $17 28. cxb4 Ra8) 28. R1g2 {[%emt 0:00:27]} Qd8 {[%emt 0:00:54]} 29. f4 $2 {[%emt 0:00:36][%mdl 8192]} (29. Qc5 $15) 29... exf3+ $1 $19 {[%emt 0:00:25]} 30. Nxf3 {[%emt 0:00:10]} (30. Rxf3 $142 Bd3+ 31. Kf2 Rxf3+ 32. Nxf3) 30... Bd3+ {[%emt 0:00:28]} 31. Kd2 {[%emt 0:00:20]} Qf8 {[%emt 0:01:28]} 32. Ne1 {[%emt 0:01:03]} Rf2+ {[%emt 0:00:37]} 33. Kd1 {[%emt 0:00:27] [#]} Rxg2 {[%emt 0:01:40]} (33... Bc2+ $142 $1 {[%mdl 512]} 34. Kc1 Be4) 34. Rxg2 {[%emt 0:00:17]} Rxe3 {[%emt 0:00:20]} 35. Qxf8+ {[%emt 0:00:42]} Kxf8 {[%emt 0:00:05][%mdl 4096] Endgame KRB-KRN} 36. Rf2+ {[%emt 0:00:13]} Ke7 {[%emt 0:00:12]} 37. h4 {[%emt 0:00:22]} Rh3 {[%emt 0:02:29]} 38. Nf3 {[%emt 0:00:53]} (38. a4 $142) 38... Be4 {[%emt 0:02:41]} 39. Ne5 {[%emt 0:00:25]} (39. Re2 $142 Rxf3 40. Rxe4+ Kf6 41. Kc2) 39... Rxc3 {[%emt 0:01:31]} 40. Re2 {[%emt 0:00:36]} Bf5 {[%emt 0:01:01]} 41. Nxc4+ {[%emt 0:00:35]} Kf6 {[%emt 0:00:50]} 42. Ne5 {[%emt 0:00:14]} (42. Nd6 {is a better defense.} Bg6 43. Ke1) 42... g5 {[%emt 0:01:39]} (42... Rh3 $142 43. Kd2 Rxh4) 43. hxg5+ {[%emt 0:00:32]} hxg5 {[%emt 0:00:06][%cal Bh6g5,Bg5g4,Bg4g3][%mdl 32] Hoping for ...g4.} 44. Rh2 $2 {[%emt 0:00:07]} (44. Rf2 {was the only defense.}) 44... Rh3 {[%emt 0:01:08]} 45. Rf2 {[%emt 0:00:18]} Rh4 {[%emt 0:01:22] Inhibits Ng4+.} (45... Ke6 $19 {White must now prevent ...Rh4.} 46. Nf7 Kxf7 47. Rxf5+ Kg6) 46. Nc6 $2 {[%emt 0:00:32][%mdl 8192]} (46. Nd7+ $1 $11 Ke7 47. Rxf5 Kxd7 48. Rxg5) 46... g4 {[%emt 0:02:03] And now ...g3 would win.} 47. Ke2 {[%emt 0:01:13]} g3 {[%emt 0:00:20] ( -> ...Rh2)} 48. Rf3 {[%emt 0:00:10]} g2 {[%emt 0:01:53]} 49. Kf2 {[%emt 0:00:05]} Ke6 $2 {[%emt 0:02:13]} ({Black should play} 49... Rg4 $19 50. Kg1 Kg5) 50. d5+ $1 $11 {[%emt 0:00:12][%mdl 64] Decoy} Kxd5 {[%emt 0:02:03] aiming for ...Be4.} 51. Ne7+ {[%emt 0:00:04]} Ke4 {[%emt 0:00:30]} 52. Rxf5 {[%emt 0:01:53] KRN-KR} (52. Nxf5 $11 g1=B+ 53. Kxg1 Kxf3 54. Nxh4+ Ke4 55. Kf2) 52... Rg4 {[%emt 0:00:59]} (52... Rh7 $17 53. Rf6 Rxe7 54. Rxa6 Rg7) 53. Kg1 {[%emt 0:00:13] The position is equal.} Rg7 $132 {[%emt 0:00:07][%mdl 2048] [#] Black is not holding back} 54. Rf6 $1 {[%emt 0:00:12]} Rxe7 {[%emt 0:00:50]} 55. Rxa6 {[%emt 0:00:13] KR-KR} Kd4 {[%emt 0:00:46]} (55... Kf3 $5 56. Rf6+ Kg4 $11) 56. Kxg2 {[%emt 0:00:11]} Rf7 {[%emt 0:00:20]} 57. Rc6 {[%emt 0:01:40]} Ra7 {[%emt 0:00:43]} 58. Rc2 {[%emt 0:00:03]} Kd3 {[%emt 0:00:32]} 59. Rb2 {[%emt 0:00:04]} Kc4 {[%emt 0:00:14]} 60. Kf2 {[%emt 0:00:09]} Re7 {[%emt 0:00:18]} 61. Kf3 {[%emt 0:01:54]} b4 {[%emt 0:00:11][%mdl 32768] And White is the lucky defender.  Weighted Error Value: White=0.67/Black=0.46. Loss on time!?} 0-1

[Event "Portuguese-ch U14-20 2022"]
[Site "Fatima"]
[Date "2022.04.12"]
[Round "4.12"]
[White "Fonseca, Pedro Miguel Ramos"]
[Black "Simoes, Miguel Patricio"]
[Result "0-1"]
[ECO "C54"]
[WhiteElo "1788"]
[BlackElo "2001"]
[Annotator "NA RC"]
[PlyCount "100"]
[EventDate "2022.04.10"]
[EventType "swiss"]
[EventCountry "POR"]
[SourceTitle "playchess.com"]
[Source "ChessBase"]
[SourceQuality "1"]
[TimeControl "5400+30"]

1. e4 e5 2. Nf3 Nc6 3. Bc4 Bc5 4. c3 Nf6 5. d4 exd4 6. b4 Be7 7. e5 Ng4 8. cxd4 Bxb4+ 9. Kf1 d5 10. Bd3 h5 11. Qa4 Be7 12. Bb5 Bd7 13. Nc3 a6 14. Nxd5 O-O 15. Nxe7+ Qxe7 16. Bxc6 Bxc6 17. Qc2 Qe6 18. Ng5 Qg6 19. Qxg6 fxg6 20. f3 Nh6 21. Ne6 Rf7 22. Nf4 Rd8 23. e6 Rf6 24. Be3 Nf5 25. Kf2 Nxe3 26. Kxe3 g5 27. Nxh5 Rxe6+ 28. Kf2 Rxd4 29. Rhd1 Rh4 30. Rd8+ Kh7 31. Ng3 Rxh2 32. Rc8 g4 33. Kg1 Rh4 34. Nf5 Rh5 35. fxg4 Rg5 36. Nd4 Re4 37. Nxc6 Rexg4 38. Kf2 Rxg2+ 39. Kf3 R2g3+ 40. Kf4 R3g4+ 41. Kf3 bxc6 42. Rxc7 Rc4 43. Rb1 a5 44. Rb6 c5 45. Rb5 Ra4 46. Rb2 Rh5 47. Kg3 Rd5 48. Rh2+ Kg6 49. Kf3 Ra3+ 50. Ke4 Rd4+ 0-1

[Event "Portuguese-ch U14-20 2022"]
[Site "Fatima"]
[Date "2022.04.12"]
[Round "4.13"]
[White "Soares, Luis Francisco Almei"]
[Black "Gomes, Estevao Manuel"]
[Result "0-1"]
[ECO "B33"]
[WhiteElo "2000"]
[BlackElo "2047"]
[Annotator "NA RC"]
[PlyCount "86"]
[EventDate "2022.04.10"]
[EventType "swiss"]
[EventCountry "POR"]
[SourceTitle "playchess.com"]
[Source "ChessBase"]
[SourceQuality "1"]
[TimeControl "5400+30"]

1. e4 {[%emt 0:00:05]} c5 {[%emt 0:05:26]} 2. Nf3 {[%emt 0:00:16]} Nc6 {[%emt 0:00:04]} 3. d4 {[%emt 0:00:06]} cxd4 {[%emt 0:00:04]} 4. Nxd4 {[%emt 0:00:03]} Nf6 {[%emt 0:00:05]} 5. Nc3 {[%emt 0:00:08]} e5 {[%emt 0:00:03]} 6. Ndb5 {[%emt 0:00:11]} d6 {[%emt 0:00:04]} 7. Bg5 {[%emt 0:00:11]} a6 {[%emt 0:00:04]} 8. Na3 {[%emt 0:00:08]} b5 {[%emt 0:00:05]} 9. Nd5 {[%emt 0:00:09]} Be7 {[%emt 0:00:03]} 10. Bxf6 {[%emt 0:00:09]} Bxf6 {[%emt 0:00:04]} 11. c3 {[%emt 0:00:19]} O-O {[%emt 0:00:05]} 12. Nc2 {[%emt 0:00:05]} Rb8 {[%emt 0:00:04] is now more promising than 12...Bg5.} 13. h4 {[%emt 0:00:20]} g6 {[%emt 0:00:12]} 14. g3 {[%emt 0:00:10]} Bg7 {[%emt 0:00:14]} 15. h5 {[%emt 0:00:17]} Ne7 {[%emt 0:00:18]} 16. Ncb4 {[%emt 0:00:52]} Nxd5 {[%emt 0:05:44]} 17. Nxd5 {[%emt 0:01:21]} Be6 {[%emt 0:00:16]} 18. Bg2 {[%emt 0:01:38] [#]} a5 $146 {[%emt 0:02:26]} ({Predecessor:} 18... Qd7 19. Qd2 Rfc8 20. h6 Bh8 21. Rd1 Rc5 22. Nb4 Rb6 23. Nd3 Rc8 24. Qe3 Qd8 25. Nb4 Rcb8 {0-1 (25) Vialet,T (1868)-Lackner,J ICCF email 2016}) 19. Qd2 {[%emt 0:03:45]} b4 {[%emt 0:11:35]} 20. c4 {[%emt 0:05:37]} b3 {[%emt 0:00:26]} 21. a3 {[%emt 0:03:53]} Rc8 {[%emt 0:00:23]} 22. Bf1 {[%emt 0:06:01]} Rc5 {[%emt 0:03:15]} 23. Ne3 {[%emt 0:09:47]} Qc7 {[%emt 0:04:06]} 24. O-O-O {[%emt 0:02:49]} Rd8 {[%emt 0:06:37]} 25. Kb1 {[%emt 0:01:28]} Bf6 {[%emt 0:04:26]} 26. f4 {[%emt 0:09:30]} Qc6 {[%emt 0:09:35]} 27. Bd3 {[%emt 0:04:20]} exf4 {[%emt 0:15:00]} 28. gxf4 {[%emt 0:00:03]} Bd4 {[%emt 0:00:15]} 29. Nd5 {[%emt 0:01:03]} Qe8 {[%emt 0:09:30]} 30. hxg6 {[%emt 0:04:30]} fxg6 {[%emt 0:00:30]} 31. f5 {[%emt 0:05:04]} Bxd5 {[%emt 0:02:40]} 32. exd5 {[%emt 0:00:06]} Qe3 {[%emt 0:02:16]} 33. Qh2 {[%emt 0:01:29]} Rc7 {[%emt 0:01:27]} 34. fxg6 {[%emt 0:02:34]} Be5 {[%emt 0:00:11]} 35. gxh7+ {[%emt 0:01:28]} Kh8 {[%emt 0:00:08]} 36. Qh4 {[%emt 0:01:07]} Rf8 {[%emt 0:00:07]} 37. Rhe1 {[%emt 0:04:27]} Qf3 {[%emt 0:00:21]} 38. Rg1 {[%emt 0:02:22]} Rg7 {[%emt 0:00:20]} 39. Qe4 {[%emt 0:02:38]} Qf2 {[%emt 0:00:57]} 40. Qxe5 {[%emt 0:02:22]} dxe5 $19 {[%emt 0:00:24]} 41. Rgf1 {[%emt 0:00:32]} Qc5 {[%emt 0:00:08]} 42. Rxf8+ {[%emt 0:02:18]} Qxf8 {[%emt 0:00:02]} 43. Rf1 {[%emt 0:00:01]} Rf7 {[%emt 0:00:23]} 0-1

[Event "Portuguese-ch U14-20 2022"]
[Site "Fatima"]
[Date "2022.04.12"]
[Round "4.14"]
[White "Duque, Raquel Dos Santos"]
[Black "Abdurramane, Danial Germano"]
[Result "0-1"]
[ECO "A36"]
[WhiteElo "1510"]
[BlackElo "1772"]
[Annotator "NA RC"]
[PlyCount "104"]
[EventDate "2022.04.10"]
[EventType "swiss"]
[EventCountry "POR"]
[SourceTitle "playchess.com"]
[Source "ChessBase"]
[SourceQuality "1"]
[TimeControl "5400+30"]

1. c4 {[%emt 0:00:58]} g6 {[%emt 0:00:11]} 2. Nc3 {[%emt 0:00:11]} Bg7 {[%emt 0:00:07]} 3. g3 {[%emt 0:00:07]} c5 {[%emt 0:00:09]} 4. Bg2 {[%emt 0:00:13]} Nc6 {[%emt 0:00:35]} 5. e4 {[%emt 0:01:44]} b6 {[%emt 0:01:21]} 6. Nge2 {[%emt 0:00:20]} Bb7 {[%emt 0:00:41]} 7. d3 {[%emt 0:00:37]} e6 {[%emt 0:06:10]} 8. Bf4 {[%emt 0:06:48]} d6 {[%emt 0:00:37]} 9. Rb1 {[%emt 0:01:05]} a6 {[%emt 0:02:21]} 10. a3 {[%emt 0:13:10]} Nd4 {[%emt 0:10:59]} 11. Nxd4 {[%emt 0:01:54]} Bxd4 12. Qa4+ {[%emt 0:00:26]} Qd7 {[%emt 0:01:12]} 13. Qxd7+ {[%emt 0:01:13]} Kxd7 {[%emt 0:01:23]} 14. Na4 {[%emt 0:01:49]} Kc7 {[%emt 0:01:42]} 15. b4 {[%emt 0:01:50]} Bc6 {[%emt 0:01:35]} 16. Nb2 {[%emt 0:02:18]} Nf6 {[%emt 0:13:11]} 17. Be3 {[%emt 0:00:30]} Bc3+ {[%emt 0:00:30]} 18. Bd2 {[%emt 0:00:17]} cxb4 19. axb4 {[%emt 0:00:38]} Bxd2+ {[%emt 0:01:52]} 20. Kxd2 {[%emt 0:00:10]} a5 {[%emt 0:00:09]} 21. b5 {[%emt 0:03:37]} Bb7 {[%emt 0:00:35]} 22. Rhc1 {[%emt 0:00:16]} Nd7 {[%emt 0:02:31]} 23. Ke3 {[%emt 0:01:58]} e5 {[%emt 0:04:05]} 24. Na4 {[%emt 0:01:43]} f5 {[%emt 0:05:11]} 25. Bh3 {[%emt 0:03:23]} Rhf8 {[%emt 0:00:44]} 26. exf5 {[%emt 0:01:49]} gxf5 {[%emt 0:00:21]} 27. f4 {[%emt 0:01:59]} Rae8 {[%emt 0:03:56]} 28. Nc3 {[%emt 0:06:12]} Nc5 {[%emt 0:02:35]} 29. Kd2 {[%emt 0:04:35]} Re6 {[%emt 0:02:26]} 30. fxe5 {[%emt 0:02:14]} Rh6 {[%emt 0:05:40]} 31. exd6+ {[%emt 0:01:40]} Kxd6 {[%emt 0:00:08]} 32. Bf1 {[%emt 0:01:35]} Rxh2+ {[%emt 0:00:42]} 33. Be2 {[%emt 0:01:06]} Rg8 34. Rf1 Rxg3 {[%emt 0:12:07]} 35. Rxf5 {[%emt 0:03:16]} Rxd3+ {[%emt 0:00:32]} 36. Kc2 {[%emt 0:01:35]} Rxc3+ {[%emt 0:01:04]} 37. Kxc3 {[%emt 0:00:22]} Rxe2 {[%emt 0:00:13]} 38. Rbf1 {[%emt 0:00:42]} Re3+ {[%emt 0:06:50]} 39. Kd2 {[%emt 0:01:54]} Re6 {[%emt 0:02:50]} 40. Rf7 {[%emt 0:01:39]} h5 {[%emt 0:02:05]} 41. R1f5 {[%emt 0:00:57]} Rh6 {[%emt 0:03:21]} 42. R5f6+ {[%emt 0:02:12]} Rxf6 {[%emt 0:00:22]} 43. Rxf6+ {[%emt 0:00:03]} Ne6 {[%emt 0:01:51]} 44. Ke3 {[%emt 0:00:23]} h4 {[%emt 0:01:36]} 45. Rh6 {[%emt 0:00:15]} h3 {[%emt 0:00:21]} 46. Rxh3 {[%emt 0:00:19]} Kc5 {[%emt 0:00:23]} 47. Rh6 {[%emt 0:01:21]} Nd8 {[%emt 0:02:17]} 48. Kd3 {[%emt 0:00:36]} Nf7 {[%emt 0:00:44]} 49. Rh5+ {[%emt 0:03:10]} Kb4 {[%emt 0:00:15]} 50. Kd4 {[%emt 0:05:26]} Nd6 {[%emt 0:00:39]} 51. Rh7 {[%emt 0:00:44]} a4 {[%emt 0:00:47]} 52. Rd7 {[%emt 0:01:45]} a3 {[%emt 0:01:01]} 0-1